fUSD/lending_fUSD_20240825
["ID","MTS","AMOUNT","RATE_DAILY","PERIOD"]
[335891621,1724572280564,-288.168989,0.00010996,2]
[335891622,1724572280573,-1220.9,0.00010996,2]
[335891623,1724572280583,-1337.179753,0.00010996,2]
[335891624,1724572280593,-736.12,0.00010996,2]
[335891625,1724572280602,-448.69862959,0.00010996,2]
[335891626,1724572281443,-175.09417838,0.00010471,2]
[335891627,1724572281453,-171.86552433,0.0001089,2]
[335891628,1724572281463,-1199.01292722,0.000109,2]
[335891629,1724572281473,-497.750315,0.00010958,2]
[335891630,1724572281482,-993.92,0.00010958,2]
[335891631,1724572281492,-993.92,0.00010958,2]
[335891632,1724572281501,-993.92,0.00010958,2]
[335891633,1724572281511,-972.39806463,0.00010958,2]
[335891634,1724572281806,-21.52193537,0.00010958,2]
[335891635,1724572281816,-500.0,0.00010958,2]
[335891636,1724572281828,-500.0,0.00010958,2]
[335891637,1724572281837,-1768.02036514,0.00010958,2]
[335891638,1724572281848,-641.30813083,0.00010958,2]
[335891639,1724572281927,-2706.56150403,0.00010958,2]
[335891640,1724572281937,-500.0,0.00010958,2]
[335891641,1724572281946,-5115.89,0.00010958,2]
[335891642,1724572281955,-500.0,0.00010958,2]
[335891643,1724572281966,-500.0,0.00010958,2]
[335891644,1724572281975,-1392.21609188,0.00010958,2]
[335891645,1724572281986,-1647.48431499,0.00010958,2]
[335891646,1724572282021,-408.277,0.00010958,2]
[335891647,1724572282895,-301.66007305,0.00010958,2]
[335891648,1724572285510,1000.0,0.0001,2]
[335891652,1724572398737,150.0,0.0001,2]
[335891653,1724572398758,101.84927595,0.0001,2]
[335891654,1724572408113,150.0,0.0001,2]
[335891655,1724572408132,32.57617703,0.0001,2]
[335891656,1724572481134,150.0,8.22e-05,2]
[335891657,1724572481157,150.0,8.22e-05,2]
[335891658,1724572481180,28.34385214,8.22e-05,2]
[335891660,1724572550647,150.0,8.219e-05,2]
[335891661,1724572550670,150.0,8.219e-05,2]
[335891662,1724572550691,44.2,8.219e-05,2]
[335891664,1724572614015,150.0,8.219e-05,2]
[335891665,1724572614036,150.0,8.219e-05,2]
[335891666,1724572614056,150.0,8.219e-05,2]
[335891667,1724572614076,150.0,8.219e-05,2]
[335891668,1724572614098,45.0,8.219e-05,2]
[335891670,1724572643034,150.0,8.22e-05,2]
[335891671,1724572643244,150.0,8.22e-05,2]
[335891672,1724572643266,150.0,8.22e-05,2]
[335891673,1724572643288,32.69244486,8.22e-05,2]
[335891674,1724572697930,150.0,0.0001,3]
[335891675,1724572697960,50.0,0.0001,3]
[335891676,1724572729575,500.0,9.918e-05,2]
[335891677,1724572811792,150.0,9.926e-05,2]
[335891678,1724572811814,150.0,9.926e-05,2]
[335891679,1724572811833,150.0,9.926e-05,2]
[335891680,1724572811854,90.92,9.926e-05,2]
[335891681,1724572857878,150.0,9.916e-05,2]
[335891682,1724572857900,18.14,9.916e-05,2]
[335891683,1724572925693,150.0,9.902e-05,2]
[335891684,1724572925714,150.0,9.902e-05,2]
[335891685,1724572925736,150.0,9.902e-05,2]
[335891686,1724572925757,150.0,9.902e-05,2]
[335891687,1724572925777,150.0,9.902e-05,2]
[335891688,1724572925797,208.81902759,9.902e-05,2]
[335891689,1724572925821,41.18097241,9.902e-05,2]
[335891690,1724573051932,150.0,8.219e-05,2]
[335891691,1724573051952,150.0,8.219e-05,2]
[335891692,1724573051973,36.17,8.219e-05,2]
[335891693,1724573113954,2054.90444075,0.00027,120]
[335891694,1724573132093,150.0,9.962e-05,2]
[335891695,1724573132116,150.0,9.962e-05,2]
[335891696,1724573132140,150.0,9.962e-05,2]
[335891697,1724573132162,150.0,9.962e-05,2]
[335891698,1724573132185,150.0,9.962e-05,2]
[335891699,1724573132209,7.28932428,9.962e-05,2]
[335891700,1724573137246,892.72350459,9.962e-05,2]
[335891701,1724573249228,150.0,0.0001,3]
[335891702,1724573249250,150.0,0.0001,3]
[335891703,1724573249273,150.0,0.0001,3]
[335891704,1724573249294,150.0,0.0001,3]
[335891705,1724573267247,1800.0,9.831e-05,2]
[335891706,1724573295840,150.0,9.91e-05,2]
[335891707,1724573295861,147.6061,9.91e-05,2]
[335891708,1724573301864,150.0,9.959e-05,2]
[335891709,1724573382761,663.96,9.697e-05,2]
[335891710,1724573416514,161.78,9.675e-05,2]
[335891711,1724573426827,200.0,9.697e-05,2]
[335891744,1724573432103,-160.53161367,0.00010009,2]
[335891747,1724573432112,-170.96,0.0001001,2]
[335891750,1724573432121,-182.65,0.00010025,2]
[335891752,1724573432130,-155.24994556,0.00010026,2]
[335891754,1724573432139,-85.08953591,0.00010026,2]
[335891761,1724573432197,-243.15930159,0.00010026,2]
[335891762,1724573432206,-336.97484579,0.00010097,2]
[335891782,1724573438592,-1618.97845385,0.00010097,2]
[335891784,1724573438601,-1200.0,0.000101,3]
[335891786,1724573438610,-1900.0,0.000102,3]
[335891788,1724573438619,-2500.0,0.000103,3]
[335891790,1724573438629,-300.0,0.00010399,2]
[335891792,1724573438638,-3100.0,0.000104,3]
[335891794,1724573438648,-356.95,0.000104,2]
[335891796,1724573438657,-356.95,0.000104,2]
[335891797,1724573438666,-175.7543572,0.00010471,2]
[335891799,1724573438676,-237.44792665,0.00010471,2]
[335891801,1724573438685,-200.40035846,0.00010471,2]
[335891803,1724573438694,-336.17,0.00010471,2]
[335891805,1724573438704,-150.27,0.000105,2]
[335891806,1724573438713,-300.0,0.000105,2]
[335891807,1724573438722,-600.0,0.000105,3]
[335891808,1724573438731,-828.96,0.000105,2]
[335891809,1724573438740,-155.43751569,0.00010505,2]
[335891810,1724573438749,-183.82701578,0.00010505,2]
[335891811,1724573438758,-3877.17064099,0.00010566,2]
[335891812,1724573438768,-600.0,0.000106,3]
[335891813,1724573438777,-162.673922,0.00010645,2]
[335891814,1724573438787,-600.0,0.000107,3]
[335891815,1724573438796,-150.0,0.00010728,2]
[335891816,1724573438805,-499.99,0.00010728,2]
[335891817,1724573438815,-786.68,0.00010728,2]
[335891818,1724573438824,-150.0,0.00010746,2]
[335891819,1724573438834,-890.6786,0.00010758,2]
[335891820,1724573438844,-5334.18870518,0.00010791,2]
[335891821,1724573438853,-401.62337545,0.000108,2]
[335891822,1724573438862,-600.0,0.000108,3]
[335891823,1724573438872,-220.59982355,0.000108,2]
[335891824,1724573438882,-150.0,0.00010857,2]
[335891825,1724573438891,-76697.5853,0.00010858,2]
[335891826,1724573438902,-2444.5159,0.00010858,2]
[335891827,1724573438911,-132482.60383663,0.00010858,2]
[335891828,1724573438926,-769.60658536,0.00010858,2]
[335891829,1724573438938,-1109.76612253,0.00010858,2]
[335891830,1724573438949,-374.53966837,0.00010858,2]
[335891831,1724573438961,-983.29885763,0.00010858,2]
[335891832,1724573438980,-290.305015,0.00010858,2]
[335891837,1724573440222,-26706.19151448,0.00010858,2]
[335891838,1724573440231,-3244.9008,0.00010858,2]
[335891839,1724573440241,-1996.1388,0.00010858,2]
[335891840,1724573440250,-155.51711428,0.00010861,2]
[335891841,1724573440259,-163.8430138,0.00010867,2]
[335891842,1724573440268,-161.78,0.00010884,2]
[335891843,1724573440277,-1176.372,0.00010888,2]
[335891844,1724573440286,-764.0,0.00010888,2]
[335891845,1724573440295,-155.0,0.00010888,2]
[335891846,1724573440304,-581.14282,0.0001089,2]
[335891847,1724573440313,-8330.0,0.00010891,2]
[335891848,1724573440324,-3727.0,0.00010891,2]
[335891849,1724573440333,-1077.0,0.00010891,2]
[335891850,1724573440343,-201.15137705,0.00010894,2]
[335891851,1724573440353,-1244.69263025,0.00010899,2]
[335891852,1724573440362,-1244.6926302,0.00010899,2]
[335891853,1724573440372,-1244.6926302,0.00010899,2]
[335891854,1724573440381,-1244.6926302,0.00010899,2]
[335891855,1724573440390,-1244.6926302,0.00010899,2]
[335891856,1724573440401,-1244.6926302,0.00010899,2]
[335891857,1724573440417,-1244.6926302,0.00010899,2]
[335891858,1724573440427,-1244.6926302,0.00010899,2]
[335891859,1724573440436,-1244.6926302,0.00010899,2]
[335891860,1724573440445,-356.95,0.000109,2]
[335891861,1724573440454,-1004.0,0.000109,3]
[335891862,1724573440463,-373.79234729,0.000109,2]
[335891863,1724573440474,-1244.6926302,0.000109,2]
[335891864,1724573440483,-200.0,0.00010909,2]
[335891865,1724573440492,-150.0,0.00010925,2]
[335891866,1724573440502,-150.0,0.00010935,2]
[335891867,1724573440511,-151.98,0.00010948,2]
[335891868,1724573440520,-497.84893016,0.00010949,2]
[335891869,1724573440530,-2402.00740994,0.00010955,2]
[335891870,1724573440539,-500.0,0.00010958,2]
[335891871,1724573440548,-500.37849473,0.00010958,2]
[335891873,1724573440558,-500.84395506,0.00010958,2]
[335891874,1724573440571,-500.0,0.00010958,2]
[335891875,1724573440580,-516.64058788,0.00010958,2]
[335891876,1724573440589,-401.14615822,0.00010958,2]
[335891877,1724573440599,-219.40810675,0.00010958,2]
[335891878,1724573440608,-500.0,0.00010958,2]
[335891879,1724573440617,-500.0,0.00010958,2]
[335891880,1724573440627,-745.42,0.00010958,2]
[335891881,1724573440637,-500.0,0.00010958,2]
[335891882,1724573440650,-500.0,0.00010958,2]
[335891883,1724573440662,-500.0,0.00010958,2]
[335891884,1724573440671,-500.0,0.00010958,2]
[335891885,1724573440680,-500.0,0.00010958,2]
[335891886,1724573440689,-557.02883968,0.00010958,2]
[335891887,1724573440698,-500.0,0.00010958,2]
[335891888,1724573440707,-500.0,0.00010958,2]
[335891889,1724573440716,-500.0,0.00010958,2]
[335891890,1724573440725,-500.0,0.00010958,2]
[335891891,1724573440734,-500.0,0.00010958,2]
[335891892,1724573440743,-597.44857835,0.00010958,2]
[335891893,1724573440752,-500.0,0.00010958,2]
[335891894,1724573440761,-500.0,0.00010958,2]
[335891895,1724573440770,-500.0,0.00010958,2]
[335891896,1724573440779,-500.0,0.00010958,2]
[335891897,1724573440789,-500.0,0.00010958,2]
[335891898,1724573440798,-500.0,0.00010958,2]
[335891899,1724573440806,-500.0,0.00010958,2]
[335891900,1724573440815,-500.0,0.00010958,2]
[335891901,1724573440824,-500.0,0.00010958,2]
[335891902,1724573440833,-500.0,0.00010958,2]
[335891903,1724573440842,-500.0,0.00010958,2]
[335891904,1724573440851,-500.0,0.00010958,2]
[335891905,1724573440860,-500.0,0.00010958,2]
[335891906,1724573440869,-500.0,0.00010958,2]
[335891907,1724573440878,-543.28575467,0.00010958,2]
[335891908,1724573440887,-167.89241114,0.00010958,2]
[335891909,1724573440897,-500.0,0.00010958,2]
[335891910,1724573440906,-500.0,0.00010958,2]
[335891911,1724573440915,-500.0,0.00010958,2]
[335891912,1724573440924,-500.0,0.00010958,2]
[335891913,1724573440934,-500.0,0.00010958,2]
[335891914,1724573440943,-500.0,0.00010958,2]
[335891915,1724573440952,-500.0,0.00010958,2]
[335891916,1724573440962,-500.0,0.00010958,2]
[335891917,1724573440971,-500.0,0.00010958,2]
[335891918,1724573440980,-500.0,0.00010958,2]
[335891919,1724573440989,-500.0,0.00010958,2]
[335891920,1724573440998,-500.0,0.00010958,2]
[335891921,1724573441007,-500.0,0.00010958,2]
[335891922,1724573441016,-500.0,0.00010958,2]
[335891923,1724573441026,-500.0,0.00010958,2]
[335891924,1724573441035,-500.0,0.00010958,2]
[335891925,1724573441045,-500.0,0.00010958,2]
[335891926,1724573441054,-500.0,0.00010958,2]
[335891927,1724573441063,-500.0,0.00010958,2]
[335891928,1724573441073,-500.0,0.00010958,2]
[335891929,1724573441082,-500.0,0.00010958,2]
[335891930,1724573441091,-500.0,0.00010958,2]
[335891931,1724573441100,-500.0,0.00010958,2]
[335891932,1724573441109,-500.0,0.00010958,2]
[335891933,1724573441119,-500.0,0.00010958,2]
[335891934,1724573441127,-500.0,0.00010958,2]
[335891935,1724573441136,-500.0,0.00010958,2]
[335891936,1724573441146,-500.0,0.00010958,2]
[335891937,1724573441155,-637.47090773,0.00010958,2]
[335891938,1724573441164,-500.0,0.00010958,2]
[335891939,1724573441173,-544.57288154,0.00010958,2]
[335891940,1724573441183,-500.0,0.00010958,2]
[335891941,1724573441192,-546.30413508,0.00010958,2]
[335891942,1724573441201,-500.0,0.00010958,2]
[335891943,1724573441211,-500.0,0.00010958,2]
[335891944,1724573441221,-500.0,0.00010958,2]
[335891945,1724573441230,-500.0,0.00010958,2]
[335891946,1724573441239,-500.0,0.00010958,2]
[335891947,1724573441248,-500.0,0.00010958,2]
[335891948,1724573441258,-500.0,0.00010958,2]
[335891949,1724573441267,-500.0,0.00010958,2]
[335891950,1724573441277,-500.0,0.00010958,2]
[335891951,1724573441286,-500.0,0.00010958,2]
[335891952,1724573441295,-500.0,0.00010958,2]
[335891953,1724573441304,-500.0,0.00010958,2]
[335891954,1724573441313,-500.0,0.00010958,2]
[335891955,1724573441323,-500.0,0.00010958,2]
[335891956,1724573441332,-500.0,0.00010958,2]
[335891957,1724573441341,-500.0,0.00010958,2]
[335891958,1724573441350,-500.0,0.00010958,2]
[335891959,1724573441359,-413.19032804,0.00010958,2]
[335891960,1724573441369,-500.0,0.00010958,2]
[335891961,1724573441378,-613.19119333,0.00010958,2]
[335891962,1724573441388,-500.0,0.00010958,2]
[335891963,1724573441398,-500.0,0.00010958,2]
[335891964,1724573441407,-500.0,0.00010958,2]
[335891965,1724573441416,-500.0,0.00010958,2]
[335891966,1724573441425,-500.0,0.00010958,2]
[335891967,1724573441434,-508.22118254,0.00010958,2]
[335891968,1724573441443,-208.86417477,0.00010958,2]
[335891969,1724573441452,-500.0,0.00010958,2]
[335891970,1724573441462,-500.0,0.00010958,2]
[335891971,1724573441471,-500.0,0.00010958,2]
[335891972,1724573441480,-500.0,0.00010958,2]
[335891973,1724573441488,-500.0,0.00010958,2]
[335891974,1724573441498,-500.0,0.00010958,2]
[335891975,1724573441507,-500.0,0.00010958,2]
[335891976,1724573441517,-506.77014196,0.00010958,2]
[335891977,1724573441526,-500.0,0.00010958,2]
[335891978,1724573441536,-218.33457861,0.00010958,2]
[335891979,1724573441545,-500.0,0.00010958,2]
[335891980,1724573441555,-500.0,0.00010958,2]
[335891981,1724573441568,-500.0,0.00010958,2]
[335891982,1724573441577,-187.51856339,0.00010958,2]
[335891983,1724573441586,-500.0,0.00010958,2]
[335891984,1724573441595,-586.18,0.00010958,2]
[335891985,1724573441605,-332.61769524,0.00010958,2]
[335891986,1724573441614,-586.18,0.00010958,2]
[335891987,1724573441623,-586.18,0.00010958,2]
[335891988,1724573441632,-501.17639034,0.00010958,2]
[335891989,1724573441641,-592.50707949,0.00010958,2]
[335891990,1724573441650,-500.0,0.00010958,2]
[335891991,1724573441660,-500.0,0.00010958,2]
[335891992,1724573441669,-500.0,0.00010958,2]
[335891993,1724573441678,-500.0,0.00010958,2]
[335891994,1724573441687,-500.0,0.00010958,2]
[335891995,1724573441696,-500.0,0.00010958,2]
[335891996,1724573441705,-500.0,0.00010958,2]
[335891997,1724573441715,-500.0,0.00010958,2]
[335891998,1724573441724,-500.0,0.00010958,2]
[335891999,1724573441734,-502.98209488,0.00010958,2]
[335892000,1724573441743,-500.0,0.00010958,2]
[335892001,1724573441752,-500.0,0.00010958,2]
[335892002,1724573441761,-500.0,0.00010958,2]
[335892003,1724573441770,-623.88356391,0.00010958,2]
[335892004,1724573441779,-500.0,0.00010958,2]
[335892005,1724573441788,-500.0,0.00010958,2]
[335892006,1724573441797,-500.0,0.00010958,2]
[335892007,1724573441806,-183.857505,0.00010958,2]
[335892008,1724573441815,-500.0,0.00010958,2]
[335892009,1724573441825,-315.60353162,0.00010958,2]
[335892010,1724573441834,-500.0,0.00010958,2]
[335892011,1724573441843,-500.0,0.00010958,2]
[335892012,1724573441853,-500.0,0.00010958,2]
[335892013,1724573441862,-500.0,0.00010958,2]
[335892014,1724573441871,-500.0,0.00010958,2]
[335892015,1724573441880,-500.0,0.00010958,2]
[335892016,1724573441889,-500.0,0.00010958,2]
[335892017,1724573441899,-3130.07,0.00010958,2]
[335892018,1724573441908,-3130.07,0.00010958,2]
[335892019,1724573441918,-500.0,0.00010958,2]
[335892020,1724573441927,-500.0,0.00010958,2]
[335892021,1724573441936,-500.0,0.00010958,2]
[335892022,1724573441945,-500.0,0.00010958,2]
[335892023,1724573441955,-500.0,0.00010958,2]
[335892024,1724573441965,-500.0,0.00010958,2]
[335892025,1724573441973,-905.97,0.00010958,2]
[335892026,1724573441982,-905.97,0.00010958,2]
[335892027,1724573442176,-500.0,0.00010958,2]
[335892028,1724573442188,-500.0,0.00010958,2]
[335892029,1724573442197,-500.0,0.00010958,2]
[335892030,1724573442206,-1143.85,0.00010958,2]
[335892031,1724573442216,-1143.85,0.00010958,2]
[335892032,1724573442226,-1824.36,0.00010958,2]
[335892033,1724573442237,-1824.36,0.00010958,2]
[335892034,1724573442246,-500.0,0.00010958,2]
[335892035,1724573442255,-500.0,0.00010958,2]
[335892036,1724573442265,-500.0,0.00010958,2]
[335892037,1724573442276,-500.0,0.00010958,2]
[335892038,1724573442286,-602.20080048,0.00010958,2]
[335892039,1724573442295,-500.0,0.00010958,2]
[335892040,1724573442304,-500.0,0.00010958,2]
[335892041,1724573442314,-500.0,0.00010958,2]
[335892042,1724573442323,-1841.05,0.00010958,2]
[335892043,1724573442334,-1841.05,0.00010958,2]
[335892044,1724573442344,-505.29631731,0.00010958,2]
[335892045,1724573442354,-1525.6,0.00010958,2]
[335892046,1724573442364,-1525.6,0.00010958,2]
[335892047,1724573442373,-633.5318391,0.00010958,2]
[335892048,1724573442382,-500.0,0.00010958,2]
[335892049,1724573442393,-1732.82,0.00010958,2]
[335892050,1724573442403,-500.0,0.00010958,2]
[335892051,1724573442413,-1732.82,0.00010958,2]
[335892052,1724573442422,-921.53,0.00010958,2]
[335892053,1724573442432,-500.0,0.00010958,2]
[335892054,1724573442441,-921.53,0.00010958,2]
[335892055,1724573442453,-500.0,0.00010958,2]
[335892056,1724573442463,-500.0,0.00010958,2]
[335892057,1724573442473,-500.0,0.00010958,2]
[335892058,1724573442482,-500.0,0.00010958,2]
[335892059,1724573442491,-678.41,0.00010958,2]
[335892060,1724573442500,-500.0,0.00010958,2]
[335892061,1724573442510,-678.41,0.00010958,2]
[335892062,1724573442519,-500.0,0.00010958,2]
[335892063,1724573442528,-500.0,0.00010958,2]
[335892064,1724573442537,-500.0,0.00010958,2]
[335892065,1724573442546,-725.65,0.00010958,2]
[335892066,1724573442556,-725.65,0.00010958,2]
[335892067,1724573442569,-725.65,0.00010958,2]
[335892068,1724573442578,-500.0,0.00010958,2]
[335892069,1724573442587,-500.0,0.00010958,2]
[335892070,1724573442596,-500.0,0.00010958,2]
[335892071,1724573442606,-500.0,0.00010958,2]
[335892072,1724573442615,-1213.87,0.00010958,2]
[335892073,1724573442624,-1213.87,0.00010958,2]
[335892074,1724573442634,-500.0,0.00010958,2]
[335892075,1724573442650,-500.0,0.00010958,2]
[335892076,1724573442666,-500.0,0.00010958,2]
[335892077,1724573442675,-382.64928124,0.00010958,2]
[335892078,1724573442685,-500.0,0.00010958,2]
[335892079,1724573442694,-500.0,0.00010958,2]
[335892080,1724573442703,-500.0,0.00010958,2]
[335892081,1724573442712,-500.0,0.00010958,2]
[335892082,1724573442722,-500.0,0.00010958,2]
[335892083,1724573442731,-500.0,0.00010958,2]
[335892084,1724573442741,-500.0,0.00010958,2]
[335892085,1724573442750,-500.0,0.00010958,2]
[335892086,1724573442760,-500.0,0.00010958,2]
[335892087,1724573442769,-621.76,0.00010958,2]
[335892088,1724573442779,-621.76,0.00010958,2]
[335892089,1724573442788,-621.76,0.00010958,2]
[335892090,1724573442797,-621.76,0.00010958,2]
[335892091,1724573442807,-500.0,0.00010958,2]
[335892092,1724573442816,-500.0,0.00010958,2]
[335892093,1724573442825,-500.0,0.00010958,2]
[335892094,1724573442835,-500.0,0.00010958,2]
[335892095,1724573442845,-500.0,0.00010958,2]
[335892096,1724573442855,-500.0,0.00010958,2]
[335892097,1724573442864,-500.0,0.00010958,2]
[335892098,1724573442873,-500.0,0.00010958,2]
[335892099,1724573442882,-500.0,0.00010958,2]
[335892100,1724573442891,-500.0,0.00010958,2]
[335892101,1724573442904,-500.0,0.00010958,2]
[335892103,1724573442913,-500.0,0.00010958,2]
[335892105,1724573442923,-557.51,0.00010958,2]
[335892106,1724573442932,-557.51,0.00010958,2]
[335892108,1724573442941,-557.51,0.00010958,2]
[335892110,1724573442950,-500.0,0.00010958,2]
[335892112,1724573442959,-500.0,0.00010958,2]
[335892114,1724573442969,-1191.68,0.00010958,2]
[335892115,1724573442978,-1191.68,0.00010958,2]
[335892117,1724573442987,-500.0,0.00010958,2]
[335892119,1724573442996,-500.0,0.00010958,2]
[335892121,1724573443005,-500.0,0.00010958,2]
[335892123,1724573443015,-1295.8,0.00010958,2]
[335892125,1724573443024,-1295.8,0.00010958,2]
[335892127,1724573443033,-500.0,0.00010958,2]
[335892128,1724573443043,-1295.8,0.00010958,2]
[335892130,1724573443052,-500.0,0.00010958,2]
[335892131,1724573443061,-1295.8,0.00010958,2]
[335892132,1724573443070,-500.0,0.00010958,2]
[335892133,1724573443080,-380.27522295,0.00010958,2]
[335892135,1724573443089,-500.0,0.00010958,2]
[335892137,1724573443098,-500.0,0.00010958,2]
[335892138,1724573443107,-500.0,0.00010958,2]
[335892140,1724573443115,-500.0,0.00010958,2]
[335892141,1724573443125,-500.0,0.00010958,2]
[335892142,1724573443134,-500.0,0.00010958,2]
[335892143,1724573443144,-500.0,0.00010958,2]
[335892144,1724573443157,-500.0,0.00010958,2]
[335892145,1724573443167,-500.0,0.00010958,2]
[335892146,1724573443176,-500.0,0.00010958,2]
[335892147,1724573443185,-500.0,0.00010958,2]
[335892148,1724573443194,-500.0,0.00010958,2]
[335892149,1724573443203,-500.0,0.00010958,2]
[335892150,1724573443212,-500.0,0.00010958,2]
[335892151,1724573443221,-500.0,0.00010958,2]
[335892152,1724573443230,-500.0,0.00010958,2]
[335892153,1724573443239,-500.0,0.00010958,2]
[335892154,1724573443248,-500.0,0.00010958,2]
[335892155,1724573443257,-1534.53,0.00010958,2]
[335892156,1724573443266,-1534.53,0.00010958,2]
[335892157,1724573443275,-500.0,0.00010958,2]
[335892158,1724573443285,-500.0,0.00010958,2]
[335892159,1724573443294,-500.0,0.00010958,2]
[335892160,1724573443303,-235.51129547,0.00010958,2]
[335892161,1724573443313,-509.58,0.00010958,2]
[335892162,1724573443322,-509.58,0.00010958,2]
[335892163,1724573443331,-500.0,0.00010958,2]
[335892164,1724573443340,-356.906,0.00010958,2]
[335892165,1724573443350,-500.0,0.00010958,2]
[335892166,1724573443360,-500.0,0.00010958,2]
[335892167,1724573443369,-500.0,0.00010958,2]
[335892168,1724573443378,-500.0,0.00010958,2]
[335892169,1724573443387,-748.03,0.00010958,2]
[335892170,1724573443396,-748.03,0.00010958,2]
[335892171,1724573443406,-1077.64,0.00010958,2]
[335892172,1724573443415,-1077.64,0.00010958,2]
[335892173,1724573443424,-1077.64,0.00010958,2]
[335892174,1724573443435,-1077.64,0.00010958,2]
[335892175,1724573443445,-500.0,0.00010958,2]
[335892176,1724573443454,-500.0,0.00010958,2]
[335892177,1724573443464,-500.0,0.00010958,2]
[335892178,1724573443473,-500.0,0.00010958,2]
[335892179,1724573443484,-500.0,0.00010958,2]
[335892180,1724573443494,-500.0,0.00010958,2]
[335892181,1724573443503,-500.0,0.00010958,2]
[335892182,1724573443514,-500.0,0.00010958,2]
[335892183,1724573443524,-500.0,0.00010958,2]
[335892184,1724573443533,-500.0,0.00010958,2]
[335892185,1724573443542,-500.0,0.00010958,2]
[335892186,1724573443551,-500.0,0.00010958,2]
[335892187,1724573443560,-500.0,0.00010958,2]
[335892188,1724573443569,-500.0,0.00010958,2]
[335892189,1724573443578,-500.0,0.00010958,2]
[335892190,1724573443591,-500.0,0.00010958,2]
[335892191,1724573443599,-500.0,0.00010958,2]
[335892192,1724573443609,-500.0,0.00010958,2]
[335892193,1724573443618,-500.0,0.00010958,2]
[335892194,1724573443627,-489.84533417,0.00010958,2]
[335892195,1724573443636,-500.0,0.00010958,2]
[335892196,1724573443645,-500.0,0.00010958,2]
[335892197,1724573443655,-566.8,0.00010958,2]
[335892198,1724573443663,-566.8,0.00010958,2]
[335892199,1724573443673,-566.8,0.00010958,2]
[335892200,1724573443682,-500.0,0.00010958,2]
[335892201,1724573443691,-500.0,0.00010958,2]
[335892202,1724573443700,-500.0,0.00010958,2]
[335892203,1724573443710,-500.0,0.00010958,2]
[335892204,1724573443719,-500.0,0.00010958,2]
[335892205,1724573443727,-500.0,0.00010958,2]
[335892206,1724573443736,-500.0,0.00010958,2]
[335892207,1724573443745,-500.0,0.00010958,2]
[335892208,1724573443754,-500.0,0.00010958,2]
[335892209,1724573443763,-500.0,0.00010958,2]
[335892210,1724573443772,-500.0,0.00010958,2]
[335892211,1724573443781,-500.0,0.00010958,2]
[335892212,1724573443790,-500.0,0.00010958,2]
[335892213,1724573443799,-500.0,0.00010958,2]
[335892214,1724573443808,-500.0,0.00010958,2]
[335892215,1724573443818,-500.0,0.00010958,2]
[335892216,1724573443827,-500.0,0.00010958,2]
[335892217,1724573443836,-500.0,0.00010958,2]
[335892218,1724573443845,-500.0,0.00010958,2]
[335892219,1724573443853,-500.0,0.00010958,2]
[335892220,1724573443863,-467.75472209,0.00010958,2]
[335892221,1724573443872,-500.0,0.00010958,2]